bitfinex/quotes_BTCUSD_20250108
["timestamp","ask_amount","ask_price","bid_price","bid_amount"]
[1736345655996,0.38444,95402.0,95395.0,0.21640582]
[1736345656205,0.05704,95401.0,95396.0,0.00104813]
[1736345656373,0.05704,95401.0,95397.0,0.20965]
[1736345656576,0.05704,95401.0,95397.0,0.21639943]
[1736345656783,0.05704,95401.0,95397.0,0.42604943]
[1736345657385,0.05704,95401.0,95397.0,0.21639943]
[1736345659253,0.05704,95400.0,95397.0,0.21639943]
[1736345659707,0.05704,95400.0,95397.0,0.00674943]
[1736345659907,0.05704,95400.0,95398.0,0.209648]
[1736345660513,0.05704,95400.0,95399.0,0.00674705]
[1736345661659,0.05804,95400.0,95399.0,0.00674705]
[1736345661860,0.05704,95400.0,95399.0,0.00774705]
[1736345662411,0.05804,95400.0,95399.0,0.00674705]
[1736345662612,0.05704,95400.0,95399.0,0.00674705]
[1736345663032,0.05804,95400.0,95399.0,0.00674705]
[1736345664477,0.05704,95400.0,95394.0,0.15]
[1736345664696,0.05704,95400.0,95399.0,0.001]
[1736345664900,0.05804,95400.0,95399.0,0.001]
[1736345665225,0.05704,95400.0,95399.0,0.001]
[1736345665448,0.05804,95400.0,95399.0,0.00674705]
[1736345665639,0.24243976,95400.0,95399.0,0.00674705]
[1736345665836,0.18439976,95400.0,95394.0,0.001]
[1736345666044,0.16133976,95399.0,95394.0,0.001]
[1736345666373,0.16133976,95399.0,95395.0,0.00675182]
[1736345666486,0.16133976,95399.0,95394.0,0.001]
[1736345666693,0.16133976,95399.0,95395.0,0.00675182]
[1736345666888,0.16133976,95399.0,95390.0,0.209665]
[1736345667136,0.16133976,95399.0,95394.0,0.209656]
[1736345667333,0.16133976,95399.0,95391.0,0.0067566]
[1736345667512,0.10429976,95399.0,95395.0,0.00675182]
[1736345667714,0.05704,95398.0,95392.0,0.209661]
[1736345667917,0.05704,95398.0,95396.0,0.00675063]
[1736345668243,0.05704,95398.0,95392.0,0.209661]
[1736345668451,0.05704,95398.0,95397.0,0.00674943]
[1736345668650,0.05704,95398.0,95392.0,0.209661]
[1736345668825,0.05704,95398.0,95397.0,0.00674943]
[1736345669041,0.05804,95398.0,95392.0,0.210661]
[1736345669247,0.05804,95398.0,95397.0,0.00674943]
[1736345669875,0.05704,95398.0,95392.0,0.210661]
[1736345670052,0.05704,95398.0,95397.0,0.00674943]
[1736345670419,0.05704,95398.0,95392.0,0.210661]
[1736345670525,0.10429976,95397.0,95392.0,0.001]
[1736345670775,0.1272,95394.0,95393.0,0.00675421]
[1736345670983,0.359856,95394.0,95393.0,0.00675421]
[1736345671199,0.359856,95394.0,95392.0,0.001]
[1736345671200,0.1469,95393.0,95392.0,0.001]
[1736345671388,0.25119976,95393.0,95392.0,0.001]
[1736345671631,0.25119976,95393.0,95365.0,0.00104843]
[1736345671632,0.0757,95371.0,95365.0,0.00104843]
[1736345671825,0.419423,95369.0,95365.0,0.00010675]
[1736345672003,0.20953976,95370.0,95366.0,0.01224185]
[1736345672147,0.20953976,95370.0,95365.0,0.00010675]
[1736345673222,0.62896076,95370.0,95365.0,0.00010675]
[1736345673450,0.62896076,95370.0,95366.0,0.01224185]
[1736345673666,0.62896076,95370.0,95365.0,0.00010675]
[1736345674422,0.62896076,95370.0,95366.0,0.005]
[1736345674644,0.62896076,95370.0,95365.0,0.00010675]
[1736345674849,0.62896076,95370.0,95365.0,0.00210675]
[1736345675018,0.63296076,95370.0,95365.0,0.00210675]
[1736345675433,0.62896076,95370.0,95365.0,0.00010675]
[1736345675648,0.63396076,95370.0,95365.0,0.00010675]
[1736345676055,0.62996076,95370.0,95365.0,0.00010675]
[1736345676301,0.63296076,95370.0,95365.0,0.00010675]
[1736345676710,0.3274,95369.0,95365.0,0.00010675]
[1736345676888,0.31401276,95368.0,95365.0,0.00010675]
[1736345677660,0.10429976,95368.0,95365.0,0.00010675]
[1736345678670,0.10829976,95368.0,95365.0,0.00010675]
[1736345679091,0.10929976,95368.0,95365.0,0.00010675]
[1736345679316,0.10529976,95368.0,95365.0,0.00010675]
[1736345679520,0.10429976,95368.0,95365.0,0.00010675]
[1736345679728,0.10829976,95368.0,95365.0,0.00010675]
[1736345680041,0.10929976,95368.0,95365.0,0.00010675]
[1736345681287,0.10829976,95368.0,95365.0,0.00010675]
[1736345681578,0.05704,95367.0,95365.0,0.00010675]
[1736345681961,0.05704,95367.0,95366.0,0.01224185]
[1736345682602,0.005,95368.0,95366.0,0.01224185]
[1736345682801,0.05704,95369.0,95367.0,0.209716]
[1736345683034,0.3274,95378.0,95373.0,0.209701]
[1736345683206,0.05704,95377.0,95373.0,0.209701]
[1736345683408,0.05704,95376.0,95375.0,0.209698]
[1736345683613,0.3274,95378.0,95374.0,0.01222273]
[1736345683817,0.3274,95378.0,95375.0,0.01222034]
[1736345683818,0.05704,95376.0,95375.0,0.01222034]
[1736345684227,0.05704,95376.0,95373.0,0.209701]
[1736345684427,0.05704,95376.0,95375.0,0.01222034]
[1736345684657,0.05704,95376.0,95374.0,0.01222273]
[1736345684785,0.05704,95376.0,95375.0,0.01222034]
[1736345684993,0.05704,95376.0,95368.0,0.15]
[1736345685361,0.05704,95376.0,95369.0,0.01223468]
[1736345685599,0.10429976,95375.0,95369.0,0.01223468]
[1736345685811,0.209707,95371.0,95369.0,0.01223468]
[1736345685986,0.10429976,95370.0,95356.0,0.15104852]
[1736345686259,0.209711,95369.0,95356.0,0.00104852]
[1736345686458,0.209716,95367.0,95342.0,0.00104858]
[1736345686583,0.209716,95367.0,95345.0,0.01030634]
[1736345686584,0.10429976,95366.0,95345.0,0.01030634]
[1736345686789,0.10429976,95366.0,95343.0,0.00104858]
[1736345686994,0.51199976,95366.0,95329.0,0.23375283]
[1736345687195,0.51199976,95366.0,95338.0,0.209778]
[1736345687401,0.51199976,95366.0,95339.0,0.15104864]
[1736345688423,0.51199976,95366.0,95342.0,0.20977]
[1736345688623,0.51199976,95366.0,95343.0,0.00104864]
[1736345688943,0.51199976,95366.0,95365.0,0.00110675]
[1736345689575,0.53499976,95366.0,95365.0,0.00110675]
[1736345690039,0.53499976,95366.0,95365.0,0.00010675]
[1736345690816,0.53499976,95366.0,95365.0,0.00380675]
[1736345691230,0.54099976,95366.0,95365.0,0.00480675]
[1736345691590,0.53699976,95366.0,95365.0,0.00380675]
[1736345691935,0.54287361,95366.0,95365.0,0.00480675]
[1736345692137,0.54087361,95366.0,95365.0,0.00480675]
[1736345692515,0.54287361,95366.0,95365.0,0.00480675]
[1736345694671,0.51987361,95366.0,95365.0,0.00480675]
[1736345700293,0.54287361,95366.0,95365.0,0.00480675]
[1736345700497,0.51987361,95366.0,95365.0,0.00480675]
[1736345700699,0.3354,95366.0,95365.0,0.00480675]
[1736345701069,0.008,95366.0,95365.0,0.26501029]
[1736345701281,0.008,95366.0,95365.0,0.25480675]
[1736345701504,0.006,95366.0,95365.0,0.26501029]
[1736345702025,0.05704,95370.0,95366.0,0.359718]
[1736345702268,0.3274,95378.0,95366.0,0.359718]
[1736345702445,0.16133976,95377.0,95371.0,0.209706]
[1736345702678,0.05704,95377.0,95367.0,0.21991555]
[1736345702880,0.3274,95378.0,95375.0,0.209696]
[1736345703095,0.3274,95378.0,95377.0,0.359694]
[1736345703493,0.3274,95378.0,95377.0,0.36987363]
[1736345704237,0.15736,95400.0,95382.0,0.1]
[1736345704438,0.05704,95399.0,95393.0,0.209658]
[1736345704644,0.05704,95399.0,95390.0,0.209665]
[1736345704867,0.05704,95399.0,95384.0,0.209678]
[1736345704868,0.10429976,95398.0,95394.0,0.01014577]
[1736345705063,0.10429976,95398.0,95379.0,0.209689]
[1736345705264,0.10429976,95398.0,95385.0,0.209676]
[1736345705486,0.10429976,95398.0,95380.0,0.00104821]
[1736345705487,0.10429976,95398.0,95381.0,0.209685]
[1736345705823,0.209676,95386.0,95372.0,0.209704]
[1736345706033,0.209676,95386.0,95365.0,0.1037]
[1736345706034,0.209695,95377.0,95365.0,0.0037]
[1736345706337,0.10429976,95376.0,95372.0,0.00010675]
[1736345706478,0.0789,95375.0,95372.0,0.00010675]
[1736345706663,0.209702,95373.0,95372.0,0.00010675]
[1736345706867,0.31400176,95373.0,95372.0,0.00010675]
[1736345707689,0.10429976,95373.0,95372.0,0.00010675]
[1736345708668,0.16129976,95373.0,95372.0,0.00010675]
[1736345708875,0.057,95373.0,95372.0,0.00010675]
[1736345709236,0.057,95373.0,95372.0,0.01029634]
[1736345709540,0.057,95373.0,95372.0,0.00010675]
[1736345710115,0.057,95373.0,95372.0,0.01029634]
[1736345710390,0.3274,95381.0,95378.0,0.209689]
[1736345710536,0.057,95380.0,95378.0,0.209689]
[1736345710947,0.3274,95381.0,95380.0,0.209687]
[1736345711269,0.3844,95381.0,95380.0,0.21986065]
[1736345713169,0.3844,95381.0,95380.0,0.22086065]
[1736345713640,0.3844,95381.0,95380.0,0.21986065]
[1736345714346,0.3844,95381.0,95380.0,0.22286065]
[1736345715053,0.3844,95381.0,95380.0,0.22386065]
[1736345715503,0.3844,95381.0,95380.0,0.22286065]
[1736345715673,0.057,95381.0,95380.0,0.22286065]
[1736345715914,0.057,95381.0,95380.0,0.22486065]
[1736345716301,0.057,95381.0,95380.0,0.22286065]
[1736345716698,0.057,95381.0,95380.0,0.22486065]
[1736345716875,0.057,95381.0,95380.0,0.22186065]
[1736345717289,0.057,95381.0,95380.0,0.22486065]
[1736345719111,0.057,95387.0,95384.0,0.1]
[1736345719334,0.3274,95399.0,95386.0,0.25]
[1736345719544,0.3274,95399.0,95396.0,0.419302]
[1736345719854,0.3274,95399.0,95398.0,0.209648]
[1736345720057,0.0486,95422.0,95397.0,0.01039491]
[1736345720058,0.057,95414.0,95404.0,0.1]
[1736345720259,0.3274,95423.0,95419.0,0.2096]
[1736345720438,0.16129976,95422.0,95407.0,0.209628]
[1736345720827,0.16129976,95422.0,95416.0,0.209608]
[1736345721150,0.057,95422.0,95416.0,0.209608]
[1736345721350,0.057,95422.0,95418.0,0.209604]
[1736345721752,0.057,95422.0,95419.0,0.00971469]
[1736345721969,0.3274,95423.0,95420.0,0.419198]
[1736345722171,0.3274,95423.0,95422.0,0.4254]
[1736345722172,0.006,95423.0,95422.0,0.4254]
[1736345722388,0.0001708,95436.0,95435.0,0.459566]
[1736345722588,0.0001708,95436.0,95435.0,0.56386576]
[1736345722589,0.00067986,95436.0,95435.0,0.56386576]
[1736345722990,0.00067986,95436.0,95435.0,0.57127695]
[1736345723165,0.00067986,95436.0,95435.0,0.46697719]
[1736345723406,0.00067986,95436.0,95435.0,0.36697719]
[1736345723604,0.00067986,95436.0,95435.0,0.36897719]
[1736345723759,0.00067986,95436.0,95435.0,0.37927376]
[1736345724114,0.00067986,95436.0,95435.0,0.36897719]
[1736345724624,0.00067986,95436.0,95435.0,0.46897719]
[1736345724825,0.00067986,95436.0,95435.0,0.57327695]
[1736345725024,0.00067986,95436.0,95435.0,0.67127695]
[1736345725600,0.00067986,95436.0,95435.0,0.67227695]
[1736345726051,0.00067986,95436.0,95435.0,0.67127695]
[1736345726259,0.00067986,95436.0,95435.0,0.67527695]
[1736345726454,0.00067986,95436.0,95435.0,0.67727695]
[1736345726687,0.00067986,95436.0,95435.0,0.67327695]
[1736345726860,0.00067986,95436.0,95435.0,0.82417442]
[1736345727472,0.00067986,95436.0,95435.0,0.79577695]
[1736345728251,0.00067986,95436.0,95435.0,0.80077695]
[1736345729513,0.00067986,95436.0,95435.0,0.80977695]
[1736345729917,0.00067986,95436.0,95435.0,0.80077695]
[1736345730342,0.00067986,95436.0,95435.0,0.80977695]
[1736345733920,0.00067986,95436.0,95435.0,0.76367695]
[1736345734118,0.00067986,95436.0,95435.0,0.23097719]
[1736345734344,0.00067986,95436.0,95435.0,0.33767753]
[1736345734897,0.00067986,95436.0,95435.0,0.59668113]
[1736345736448,0.00067986,95436.0,95435.0,0.59197729]
[1736345737411,0.00067986,95436.0,95435.0,0.69197729]
[1736345737583,0.00067986,95436.0,95435.0,0.69668113]
[1736345738603,0.00067986,95436.0,95435.0,0.69197729]
[1736345738778,0.00067986,95436.0,95435.0,0.69668113]
[1736345738983,0.00067986,95436.0,95435.0,0.69197729]
[1736345739332,0.00067986,95436.0,95435.0,0.69668113]
[1736345740892,0.00067986,95436.0,95435.0,0.49238137]
[1736345741314,0.00067986,95436.0,95435.0,0.48767753]
[1736345741925,0.00067986,95436.0,95435.0,0.33767753]
[1736345742502,0.00067986,95436.0,95435.0,0.48267753]
[1736345742903,0.00067986,95436.0,95435.0,0.48667753]
[1736345743371,0.00067986,95436.0,95435.0,0.38267753]
[1736345743586,0.00067986,95436.0,95435.0,0.38667753]
[1736345744204,0.00067986,95436.0,95435.0,0.38267753]
[1736345744405,0.00067986,95436.0,95435.0,0.01411153]
[1736345744582,0.00067986,95436.0,95435.0,0.01811153]
[1736345744770,0.08107986,95436.0,95435.0,0.01811153]
[1736345744969,0.12987986,95436.0,95435.0,0.012]
[1736345745168,0.23417962,95436.0,95435.0,0.004]
[1736345745727,0.23417962,95436.0,95435.0,0.006]
[1736345745929,0.23417962,95436.0,95425.0,0.209588]
[1736345746165,0.23417962,95436.0,95435.0,0.001]
[1736345746166,0.12987986,95436.0,95435.0,0.001]
[1736345746596,0.00067986,95436.0,95435.0,0.151]
[1736345746770,0.00067986,95436.0,95435.0,0.16515923]
[1736345748122,0.3274,95440.0,95435.0,0.16515923]
[1736345748123,0.31925046,95440.0,95437.0,0.15]
[1736345748329,0.31940312,95440.0,95437.0,0.15]
[1736345748538,0.00015266,95440.0,95438.0,0.01410259]
[1736345748759,0.00015266,95440.0,95439.0,0.15104766]
[1736345748967,0.00015266,95440.0,95439.0,0.35104766]
[1736345749172,0.00015266,95440.0,95439.0,0.36879947]
[1736345749582,0.00015266,95440.0,95439.0,0.3640996]
[1736345749806,0.00015266,95440.0,95439.0,0.66499922]
[1736345750464,0.00015266,95440.0,95439.0,0.66899922]
[1736345750840,0.00015266,95440.0,95439.0,0.66499922]
[1736345751449,0.00015266,95440.0,95439.0,0.66899922]
[1736345752051,0.00015266,95440.0,95439.0,0.55849922]
[1736345752788,0.00015266,95440.0,95439.0,0.55449922]
[1736345752938,0.00015266,95440.0,95439.0,0.56749922]
[1736345753751,2.6e-07,95448.0,95447.0,0.55954]
[1736345754014,2.6e-07,95448.0,95447.0,0.68260741]
[1736345754957,2.6e-07,95448.0,95447.0,0.72940741]
[1736345755420,2.6e-07,95448.0,95447.0,0.73840741]
[1736345755627,2.6e-07,95448.0,95447.0,0.72940741]
[1736345756026,0.00100026,95448.0,95447.0,0.74440741]
[1736345756674,2.6e-07,95448.0,95447.0,0.73840741]
[1736345756867,2.6e-07,95448.0,95447.0,0.70201626]
[1736345757073,0.00100026,95448.0,95447.0,0.72944652]
[1736345757718,0.00100026,95448.0,95447.0,0.62514676]
[1736345757967,0.00100026,95448.0,95447.0,0.24902458]
[1736345758968,0.00100026,95448.0,95447.0,0.24002458]
[1736345759175,2.6e-07,95448.0,95447.0,0.23402458]
[1736345759389,2.6e-07,95448.0,95447.0,0.24302458]
[1736345759594,0.00100026,95448.0,95447.0,0.39102458]
[1736345760013,2.6e-07,95448.0,95447.0,0.49302458]
[1736345760371,2.6e-07,95448.0,95447.0,0.48802458]
[1736345760769,2.6e-07,95448.0,95447.0,0.49502458]
[1736345760971,0.05,95465.0,95464.0,0.1]
[1736345761241,0.0769,95488.0,95474.0,0.25]
[1736345761402,0.0769,95488.0,95474.0,0.56378076]
[1736345761728,0.0003234,95475.0,95474.0,0.58244103]
[1736345763092,0.0003234,95475.0,95474.0,0.38855748]
[1736345763497,0.0003234,95475.0,95474.0,0.39155748]
[1736345763721,0.0003234,95475.0,95474.0,0.40055748]
[1736345764125,0.0003234,95475.0,95474.0,0.39755748]
[1736345764323,0.0003234,95475.0,95474.0,0.39155748]
[1736345765562,0.0003234,95475.0,95474.0,0.59585724]
[1736345765801,0.0003234,95475.0,95474.0,0.70185724]
[1736345765995,0.0003234,95475.0,95474.0,0.69285724]
[1736345766198,0.0003234,95475.0,95474.0,0.69585724]
[1736345766386,0.0003234,95475.0,95474.0,0.70485724]
[1736345766602,0.0003234,95475.0,95474.0,0.69285724]
[1736345766987,0.0003234,95475.0,95474.0,0.70485724]
[1736345767320,0.0003234,95475.0,95474.0,0.69585724]
[1736345767481,0.0003234,95475.0,95474.0,0.69285724]
[1736345767688,0.0003234,95475.0,95474.0,0.59755748]
[1736345767894,0.0003234,95475.0,95474.0,0.23714127]
[1736345768103,0.0003234,95475.0,95474.0,0.2324762]
[1736345768459,0.0003234,95475.0,95474.0,0.23714126]
[1736345769042,0.0003234,95475.0,95474.0,0.24314126]
[1736345769274,0.0003234,95475.0,95474.0,0.23414126]
[1736345769493,0.0003234,95475.0,95474.0,0.23714126]
[1736345769867,0.0003234,95475.0,95474.0,0.23114126]
[1736345770110,0.0003234,95475.0,95474.0,0.24014126]
[1736345770520,0.0003234,95475.0,95474.0,0.34014126]
[1736345770725,0.0003234,95475.0,95474.0,0.49014126]
[1736345771158,0.0003234,95475.0,95474.0,0.59444102]
[1736345772106,0.0003234,95475.0,95474.0,0.69444102]
[1736345775604,0.0003234,95475.0,95474.0,0.92871748]
[1736345776236,0.0003234,95475.0,95474.0,0.82871748]
[1736345776480,0.0003234,95475.0,95474.0,0.2354762]
[1736345776481,0.1282234,95475.0,95474.0,0.2354762]
[1736345776755,0.1282234,95475.0,95474.0,0.24014126]
[1736345776977,0.0003234,95475.0,95474.0,0.34014126]
[1736345777204,0.0003234,95475.0,95474.0,0.44444102]
[1736345777634,0.0003234,95475.0,95474.0,0.59444102]
[1736345778938,0.0003234,95475.0,95474.0,0.39014126]
[1736345779162,0.0003234,95475.0,95474.0,0.24014126]
[1736345779333,0.0003234,95475.0,95474.0,0.0259952]
[1736345779334,0.1224234,95475.0,95474.0,0.0259952]
[1736345779716,0.22672316,95475.0,95474.0,0.0259952]
[1736345779920,0.22672316,95475.0,95474.0,0.003]
[1736345780217,0.1302,95473.0,95459.0,0.209513]
[1736345780457,0.0808,95472.0,95464.0,0.209503]
[1736345780846,0.0808,95472.0,95465.0,0.01402204]
[1736345781279,0.0494,95473.0,95456.0,0.01068517]
[1736345781280,0.0818,95470.0,95458.0,0.419028]
[1736345781513,0.16121976,95469.0,95466.0,0.01401906]
[1736345781685,0.16121976,95469.0,95459.0,0.15]
[1736345781824,0.16121976,95469.0,95460.0,0.209511]
[1736345782029,0.05692,95469.0,95464.0,0.209501]
[1736345782428,0.05692,95469.0,95465.0,0.01402204]
[1736345782674,0.0818,95470.0,95466.0,0.418996]
[1736345783004,0.05692,95468.0,95466.0,0.418996]
[1736345783199,0.05692,95468.0,95467.0,0.01401608]
[1736345784035,0.13642,95468.0,95467.0,0.01401608]
[1736345784479,0.0793,95467.0,95457.0,0.419034]
[1736345784683,0.0793,95467.0,95454.0,0.15]
[1736345784884,0.0793,95467.0,95458.0,0.01404292]
[1736345785150,0.0793,95467.0,95457.0,0.209518]
[1736345785357,0.0793,95467.0,95459.0,0.01403994]
[1736345785574,0.0793,95467.0,95458.0,0.01404292]
[1736345785575,0.18359976,95467.0,95458.0,0.01404292]
[1736345785777,0.18359976,95467.0,95460.0,0.01403695]
[1736345785964,0.18359976,95467.0,95459.0,0.01403994]
[1736345786196,0.18359976,95467.0,95461.0,0.01403397]
[1736345786399,0.18359976,95467.0,95454.0,0.15]
[1736345786570,0.18359976,95467.0,95457.0,0.209518]
[1736345786952,0.18359976,95467.0,95458.0,0.01404292]
[1736345787279,0.0793,95467.0,95459.0,0.209514]
[1736345787636,0.0793,95467.0,95460.0,0.01403695]
[1736345788078,0.0793,95467.0,95457.0,0.209518]
[1736345788267,0.0793,95467.0,95461.0,0.22354197]
[1736345788580,0.0793,95467.0,95457.0,0.209518]
[1736345788736,0.0793,95467.0,95459.0,0.002]
[1736345788942,0.0793,95467.0,95460.0,0.209511]
[1736345789142,0.0793,95467.0,95460.0,0.22354795]
[1736345789890,0.0793,95467.0,95465.0,0.2095]
[1736345790098,0.13622,95467.0,95465.0,0.209498]
[1736345790311,0.13622,95467.0,95466.0,0.01401906]
[1736345790709,0.0793,95467.0,95466.0,0.01401906]
[1736345791070,0.31925046,95473.0,95466.0,0.16506649]
[1736345791071,0.37617046,95473.0,95466.0,0.16506649]
[1736345791301,0.0761234,95475.0,95472.0,0.41897]
[1736345791654,0.0761234,95475.0,95474.0,0.359481]
[1736345791655,0.0003234,95475.0,95474.0,0.359481]
[1736345792235,0.0003234,95475.0,95474.0,0.47814127]
[1736345792438,0.0003234,95475.0,95474.0,0.58244103]
[1736345792758,0.0013234,95475.0,95474.0,0.70357976]
[1736345792965,0.000171,95495.0,95494.0,0.459437]
[1736345793183,0.000171,95495.0,95494.0,0.56373676]
[1736345793384,0.000171,95495.0,95494.0,0.58231753]
[1736345793603,0.000171,95495.0,95494.0,0.68231753]
[1736345794327,1e-06,95495.0,95494.0,0.68231753]
[1736345795088,1e-06,95495.0,95494.0,0.70323758]
[1736345795992,1e-06,95495.0,95494.0,0.71376578]
[1736345796245,1e-06,95495.0,95494.0,0.72276578]
[1736345796467,1e-06,95495.0,95494.0,0.72776578]
[1736345796635,1e-06,95495.0,95494.0,0.71876578]
[1736345796842,1e-06,95495.0,95494.0,0.71157979]
[1736345797055,1e-06,95495.0,95494.0,0.62057979]
[1736345797253,1e-06,95495.0,95494.0,0.72057979]
[1736345797985,1e-06,95495.0,95494.0,0.71557979]
[1736345798140,1e-06,95495.0,95494.0,0.72157979]
[1736345798587,1e-06,95495.0,95494.0,0.71557979]
[1736345799011,1e-06,95495.0,95494.0,0.72057979]
[1736345799628,1e-06,95495.0,95494.0,0.71157979]
[1736345800133,1e-06,95495.0,95494.0,0.72057979]
[1736345800307,1e-06,95495.0,95494.0,0.71157979]
[1736345800718,1e-06,95495.0,95494.0,0.72057979]
[1736345801033,1e-06,95495.0,95494.0,0.71557979]
[1736345801183,1e-06,95495.0,95494.0,0.70657979]
[1736345801382,1e-06,95495.0,95494.0,0.71157979]
[1736345801829,1e-06,95495.0,95494.0,0.70657979]
[1736345802238,1e-06,95495.0,95494.0,0.71157979]
[1736345803325,1e-06,95495.0,95494.0,0.72057979]
[1736345803537,1e-06,95495.0,95494.0,0.71157979]
[1736345804079,1e-06,95495.0,95494.0,0.72057979]
[1736345804435,1e-06,95495.0,95494.0,0.71157979]
[1736345804639,1e-06,95495.0,95494.0,0.70657979]
[1736345805043,1e-06,95495.0,95494.0,0.72057979]
[1736345805455,1e-06,95495.0,95494.0,0.74357979]
[1736345805741,1e-06,95495.0,95494.0,1.05917979]
[1736345805945,1e-06,95495.0,95494.0,1.06417979]
[1736345806364,1e-06,95495.0,95494.0,1.05917979]
[1736345806541,1e-06,95495.0,95494.0,1.06677631]
[1736345806745,1e-06,95495.0,95494.0,1.07177631]
[1736345806962,1e-06,95495.0,95494.0,1.06277631]
[1736345807771,1e-06,95495.0,95494.0,1.07177631]
[1736345807979,1e-06,95495.0,95494.0,1.27353955]
[1736345808184,1e-06,95495.0,95494.0,1.26876672]
[1736345808397,1e-06,95495.0,95494.0,1.27776672]
[1736345808570,1e-06,95495.0,95494.0,1.26376672]
[1736345808771,1e-06,95495.0,95494.0,1.03000348]
[1736345808983,1e-06,95495.0,95494.0,1.03974297]
[1736345809191,1e-06,95495.0,95494.0,1.03500348]
[1736345809394,1e-06,95495.0,95494.0,1.03474297]
[1736345809709,1e-06,95495.0,95494.0,1.03500348]
[1736345810052,1e-06,95495.0,95494.0,1.04400348]
[1736345810280,1e-06,95495.0,95494.0,1.03500348]
[1736345810463,1e-06,95495.0,95494.0,0.69874297]
[1736345810677,1e-06,95495.0,95494.0,0.79400348]
[1736345811440,1e-06,95495.0,95494.0,0.83000348]
[1736345811616,1e-06,95495.0,95494.0,0.51440348]
[1736345811825,1e-06,95495.0,95494.0,0.52340348]
[1736345811980,1e-06,95495.0,95494.0,0.51840348]
[1736345812479,1e-06,95495.0,95494.0,0.52240348]
[1736345813092,1e-06,95495.0,95494.0,0.51840348]
[1736345813303,1e-06,95495.0,95494.0,0.52240348]
[1736345813821,1e-06,95495.0,95494.0,0.61340348]
[1736345814031,1e-06,95495.0,95494.0,0.71340348]
[1736345814239,1e-06,95495.0,95494.0,0.72240348]
[1736345816779,1e-06,95495.0,95494.0,0.71840348]
[1736345817201,1e-06,95495.0,95494.0,0.70940348]
[1736345817395,1e-06,95495.0,95494.0,0.72240348]
[1736345818793,1e-06,95495.0,95494.0,0.52240348]
[1736345818994,0.076801,95495.0,95494.0,0.26810372]
[1736345819199,0.123201,95495.0,95494.0,0.23665547]
[1736345819850,0.123201,95495.0,95494.0,0.02721847]
[1736345820261,0.123201,95495.0,95494.0,0.02321847]
[1736345821101,0.123201,95495.0,95494.0,0.02521847]
[1736345822167,0.123201,95495.0,95494.0,0.01621847]
[1736345822367,1e-06,95495.0,95494.0,0.01921847]
[1736345822575,1e-06,95495.0,95494.0,0.02026547]
[1736345822775,1e-06,95495.0,95494.0,0.01652598]
[1736345823036,1e-06,95495.0,95494.0,0.37082574]
[1736345823199,1e-06,95495.0,95494.0,0.46977874]
[1736345823407,1e-06,95495.0,95494.0,0.46877874]
[1736345823604,1e-06,95495.0,95494.0,0.47277874]
[1736345823853,1e-06,95495.0,95494.0,0.48921155]
[1736345824285,1e-06,95495.0,95494.0,0.48521155]
[1736345825432,1e-06,95495.0,95494.0,0.49421155]
[1736345825634,1e-06,95495.0,95494.0,0.48921155]
[1736345825841,1e-06,95495.0,95494.0,0.16347898]
[1736345826013,1e-06,95495.0,95494.0,0.16952594]
[1736345826194,1e-06,95495.0,95494.0,0.2648257]
[1736345826402,1e-06,95495.0,95494.0,0.26977874]
[1736345826597,1e-06,95495.0,95494.0,0.27877874]
[1736345826801,1e-06,95495.0,95494.0,0.26977874]
[1736345827051,1e-06,95495.0,95494.0,0.26377874]
[1736345827251,1e-06,95495.0,95494.0,0.26777874]
[1736345827432,1e-06,95495.0,95494.0,0.27677874]
[1736345828252,1e-06,95495.0,95494.0,0.50944359]
[1736345828439,1e-06,95495.0,95494.0,0.97265059]
[1736345828638,6e-07,95505.0,95504.0,0.559415]
[1736345828842,1.7e-07,95505.0,95504.0,0.66371476]
[1736345829178,1.7e-07,95505.0,95504.0,0.67317387]
[1736345829904,1.7e-07,95505.0,95504.0,0.71182995]
[1736345830108,1.7e-07,95505.0,95504.0,0.96859319]
[1736345830285,0.00013117,95514.0,95513.0,0.559395]
[1736345830491,0.00013117,95514.0,95513.0,0.66369476]
[1736345830713,0.00013117,95514.0,95513.0,0.673136]
[1736345830943,1.7e-07,95514.0,95513.0,0.783636]
[1736345831641,7.7e-07,95518.0,95517.0,0.35]
[1736345831841,7.7e-07,95518.0,95517.0,0.45429976]
[1736345832036,7.7e-07,95518.0,95517.0,0.46373305]
[1736345832340,7.7e-07,95518.0,95517.0,0.48673305]
[1736345832952,7.7e-07,95518.0,95517.0,0.49073305]
[1736345834742,7.7e-07,95518.0,95517.0,0.50100238]
[1736345834943,7.7e-07,95518.0,95517.0,0.51000238]
[1736345835468,7.7e-07,95518.0,95517.0,0.5311516]
[1736345835674,7.7e-07,95518.0,95517.0,0.81234128]
[1736345836034,7.7e-07,95518.0,95517.0,0.5311516]
[1736345836619,7.7e-07,95518.0,95517.0,0.5081516]
[1736345837182,7.7e-07,95518.0,95517.0,0.4081516]
[1736345837591,7.7e-07,95518.0,95517.0,0.5081516]
[1736345842150,7.7e-07,95518.0,95517.0,0.6186516]
[1736345842361,7.7e-07,95518.0,95517.0,0.5081516]
[1736345845326,7.7e-07,95518.0,95517.0,0.4081516]
[1736345845582,7.7e-07,95518.0,95517.0,0.05385184]
[1736345845769,7.7e-07,95518.0,95517.0,0.03270262]
[1736345846349,7.7e-07,95518.0,95517.0,0.03374949]
[1736345846554,7.7e-07,95518.0,95517.0,0.28804925]
[1736345846817,7.7e-07,95518.0,95517.0,0.28700238]
[1736345846993,7.7e-07,95518.0,95517.0,0.27800238]
[1736345847391,7.7e-07,95518.0,95517.0,0.27400238]
[1736345847589,7.7e-07,95518.0,95517.0,0.28100238]
[1736345847843,7.7e-07,95518.0,95517.0,0.28400238]
[1736345848178,7.7e-07,95518.0,95517.0,0.27400238]
[1736345848675,7.7e-07,95518.0,95517.0,0.27800238]
[1736345849086,7.7e-07,95518.0,95517.0,0.28700238]
[1736345850285,7.7e-07,95518.0,95517.0,0.38700238]
[1736345850644,7.7e-07,95518.0,95517.0,0.48700238]
[1736345852233,7.7e-07,95518.0,95517.0,0.59750238]
[1736345853270,7.7e-07,95518.0,95517.0,0.48700238]
[1736345853678,7.7e-07,95518.0,95517.0,0.38700238]
[1736345854275,7.7e-07,95518.0,95517.0,0.48700238]
[1736345859088,7.7e-07,95518.0,95517.0,0.38700238]
[1736345860023,7.7e-07,95518.0,95517.0,0.383351]
[1736345860168,0.0001706,95532.0,95528.0,0.1]
[1736345860367,0.0001706,95532.0,95530.0,0.15]
[1736345860574,0.0001706,95532.0,95531.0,0.25534635]
[1736345860815,0.0001706,95532.0,95531.0,0.26006499]
[1736345861620,0.0001706,95532.0,95531.0,0.46942099]